[Event "Titled Tuesday Blitz August 15 Early 2023"]
[White "Bashirli, Saadat"]
[Black "Parkhov, Yair"]
[WhiteFideId "13429990"]
[BlackFideId "2813408"]
[WhiteElo "2341"]
[BlackElo "2662"]
[Result "0-1"]
[Round "1"]
[TimeControl "180+1"]
[Date "2023.08.15"]
[WhiteClock "0:00:23"]
[BlackClock "0:00:26"]
[Board "129"]

1. e4 {[%clk 0:02:59]}  c6 {[%clk 0:02:58]} 2. c4 {[%clk 0:02:59]}  g6 {[%clk 0:02:56]} 3. Nc3 {[%clk 0:02:58]}  Bg7 {[%clk 0:02:56]} 4. d4 {[%clk 0:02:58]}  d6 {[%clk 0:02:55]} 5. Be2 {[%clk 0:02:59]}  Nf6 {[%clk 0:02:55]} 6. Bg5 {[%clk 0:02:57]}  O-O {[%clk 0:02:55]} 7. Nf3 {[%clk 0:02:58]}  h6 {[%clk 0:02:52]} 8. Bf4 {[%clk 0:02:57]}  Nbd7 {[%clk 0:02:49]} 9. O-O {[%clk 0:02:56]}  e5 {[%clk 0:02:32]} 10. dxe5 {[%clk 0:02:47]}  Nh5 {[%clk 0:02:32]} 11. Be3 {[%clk 0:02:41]}  dxe5 {[%clk 0:02:31]} 12. Qd6 {[%clk 0:02:40]}  Re8 {[%clk 0:02:21]} 13. Rad1 {[%clk 0:02:37]}  Bf8 {[%clk 0:02:20]} 14. Qd2 {[%clk 0:02:34]}  Kh7 {[%clk 0:02:16]} 15. a3 {[%clk 0:02:33]}  Qe7 {[%clk 0:02:13]} 16. b4 {[%clk 0:02:28]}  Ndf6 {[%clk 0:02:08]} 17. c5 {[%clk 0:02:24]}  Ng4 {[%clk 0:02:05]} 18. Bc4 {[%clk 0:02:18]}  Qf6 {[%clk 0:01:45]} 19. h3 {[%clk 0:02:13]}  Nxe3 {[%clk 0:01:39]} 20. fxe3 {[%clk 0:02:09]}  Be6 {[%clk 0:01:34]} 21. Nd4 {[%clk 0:01:56]}  Bxc4 {[%clk 0:01:08]} 22. Rxf6 {[%clk 0:01:51]}  Nxf6 {[%clk 0:01:09]} 23. Nf3 {[%clk 0:01:46]}  Kg7 {[%clk 0:00:59]} 24. Kh2 {[%clk 0:01:40]}  Re6 {[%clk 0:00:48]} 25. Qf2 {[%clk 0:01:30]}  Rae8 {[%clk 0:00:42]} 26. g4 {[%clk 0:01:25]}  R6e7 {[%clk 0:00:35]} 27. Qg3 {[%clk 0:01:21]}  Nd7 {[%clk 0:00:24]} 28. h4 {[%clk 0:01:11]}  f6 {[%clk 0:00:22]} 29. Nd2 {[%clk 0:00:59]}  Bf7 {[%clk 0:00:22]} 30. Nf3 {[%clk 0:00:58]}  g5 {[%clk 0:00:20]} 31. h5 {[%clk 0:00:58]}  Be6 {[%clk 0:00:19]} 32. Rd6 {[%clk 0:00:56]}  Rf7 {[%clk 0:00:17]} 33. Rd2 {[%clk 0:00:55]}  Nb8 {[%clk 0:00:17]} 34. Kh3 {[%clk 0:00:51]}  Rd7 {[%clk 0:00:17]} 35. Qe1 {[%clk 0:00:49]}  Red8 {[%clk 0:00:17]} 36. Kg3 {[%clk 0:00:43]}  Na6 {[%clk 0:00:16]} 37. Qe2 {[%clk 0:00:39]}  Nc7 {[%clk 0:00:16]} 38. Rxd7+ {[%clk 0:00:29]}  Rxd7 {[%clk 0:00:16]} 39. Kh3 {[%clk 0:00:29]}  a6 {[%clk 0:00:16]} 40. Kg3 {[%clk 0:00:29]}  Nb5 {[%clk 0:00:16]} 41. Nxb5 {[%clk 0:00:26]}  axb5 {[%clk 0:00:17]} 42. Nd2 {[%clk 0:00:25]}  Be7 {[%clk 0:00:17]} 43. Kh3 {[%clk 0:00:24]}  Kf7 {[%clk 0:00:17]} 44. Kg3 {[%clk 0:00:23]}  Bd8 {[%clk 0:00:17]} 45. Kh3 {[%clk 0:00:22]}  Bc7 {[%clk 0:00:18]} 46. Kg3 {[%clk 0:00:22]}  Ke7 {[%clk 0:00:18]} 47. Kh3 {[%clk 0:00:22]}  Kd8 {[%clk 0:00:19]} 48. Kg3 {[%clk 0:00:22]}  Kc8 {[%clk 0:00:19]} 49. Kf3 {[%clk 0:00:22]}  b6 {[%clk 0:00:19]} 50. Kg3 {[%clk 0:00:18]}  bxc5 {[%clk 0:00:18]} 51. bxc5 {[%clk 0:00:19]}  Kb7 {[%clk 0:00:19]} 52. Qf2 {[%clk 0:00:18]}  Ba5 {[%clk 0:00:18]} 53. Nf1 {[%clk 0:00:17]}  Bd8 {[%clk 0:00:15]} 54. Kf3 {[%clk 0:00:16]}  Rd3 {[%clk 0:00:14]} 55. Qb2 {[%clk 0:00:14]}  Ba5 {[%clk 0:00:13]} 56. Ng3 {[%clk 0:00:14]}  Bc3 {[%clk 0:00:13]} 57. Qc2 {[%clk 0:00:14]}  Bc4 {[%clk 0:00:13]} 58. Nf5 {[%clk 0:00:13]}  Be1 {[%clk 0:00:12]} 59. Nd6+ {[%clk 0:00:13]}  Kc7 {[%clk 0:00:11]} 60. Nxc4 {[%clk 0:00:13]}  bxc4 {[%clk 0:00:11]} 61. Qxc4 {[%clk 0:00:14]}  Rd2 {[%clk 0:00:11]} 62. Qf1 {[%clk 0:00:12]}  Bh4 {[%clk 0:00:09]} 63. a4 {[%clk 0:00:09]}  Kb7 {[%clk 0:00:10]} 64. a5 {[%clk 0:00:10]}  Ka8 {[%clk 0:00:09]} 65. a6 {[%clk 0:00:10]}  Ka7 {[%clk 0:00:09]} 66. Qg1 {[%clk 0:00:09]}  Kxa6 {[%clk 0:00:08]} 67. Qa1+ {[%clk 0:00:10]}  Kb7 {[%clk 0:00:08]} 68. Qf1 {[%clk 0:00:11]}  Rf2+ {[%clk 0:00:07]} 69. Qxf2 {[%clk 0:00:11]}  Bxf2 {[%clk 0:00:08]} 70. Kxf2 {[%clk 0:00:12]}  Ka6 {[%clk 0:00:09]} 71. Ke2 {[%clk 0:00:11]}  Kb5 {[%clk 0:00:10]} 72. Kd3 {[%clk 0:00:12]}  Kxc5 {[%clk 0:00:11]} 73. Kc3 {[%clk 0:00:12]}  Kb5 {[%clk 0:00:11]} 74. Kb3 {[%clk 0:00:13]}  c5 {[%clk 0:00:12]} 75. Kc3 {[%clk 0:00:14]}  c4 {[%clk 0:00:13]} 76. Kc2 {[%clk 0:00:14]}  Kb4 {[%clk 0:00:14]} 77. Kb2 {[%clk 0:00:15]}  c3+ {[%clk 0:00:14]} 78. Kc2 {[%clk 0:00:15]}  Kc4 {[%clk 0:00:15]} 79. Kc1 {[%clk 0:00:15]}  Kd3 {[%clk 0:00:15]} 80. Kd1 {[%clk 0:00:16]}  Kxe4 {[%clk 0:00:15]} 81. Kc2 {[%clk 0:00:15]}  Kxe3 {[%clk 0:00:16]} 82. Kxc3 {[%clk 0:00:16]}  Kf4 {[%clk 0:00:16]} 83. Kd3 {[%clk 0:00:17]}  Kxg4 {[%clk 0:00:17]} 84. Ke2 {[%clk 0:00:17]}  Kxh5 {[%clk 0:00:17]} 85. Ke3 {[%clk 0:00:18]}  Kg4 {[%clk 0:00:18]} 86. Ke4 {[%clk 0:00:19]}  h5 {[%clk 0:00:18]} 87. Ke3 {[%clk 0:00:19]}  h4 {[%clk 0:00:19]} 88. Ke4 {[%clk 0:00:20]}  h3 {[%clk 0:00:20]} 89. Ke3 {[%clk 0:00:21]}  h2 {[%clk 0:00:21]} 90. Ke4 {[%clk 0:00:22]}  h1=Q+ {[%clk 0:00:22]} 91. Ke3 {[%clk 0:00:22]}  Qf3+ {[%clk 0:00:22]} 92. Kd2 {[%clk 0:00:20]}  e4 {[%clk 0:00:23]} 93. Kc2 {[%clk 0:00:21]}  e3 {[%clk 0:00:23]} 94. Kb2 {[%clk 0:00:22]}  e2 {[%clk 0:00:24]} 95. Ka2 {[%clk 0:00:23]}  e1=Q {[%clk 0:00:25]} 96. Kb2 {[%clk 0:00:23]}  Qee2+ {[%clk 0:00:25]} 97. Kb1 {[%clk 0:00:23]}  Qff1# {[%clk 0:00:26]} 0-1


[Site "https://www.chess.com"]

[Event "Titled Tuesday Blitz August 15 Early 2023"]
[White "Pershina, Elena"]
[Black "Iskusnyh, Sergei"]
[WhiteFideId "24147516"]
[BlackFideId "4120027"]
[WhiteElo "2339"]
[BlackElo "2648"]
[Result "0-1"]
[Round "1"]
[TimeControl "180+1"]
[Date "2023.08.15"]
[WhiteClock "0:00:51"]
[BlackClock "0:00:50"]
[Board "131"]

1. c4 {[%clk 0:03:00]}  e5 {[%clk 0:02:58]} 2. Nc3 {[%clk 0:02:58]}  Bb4 {[%clk 0:02:57]} 3. g3 {[%clk 0:02:53]}  Bxc3 {[%clk 0:02:56]} 4. dxc3 {[%clk 0:02:52]}  d6 {[%clk 0:02:53]} 5. e4 {[%clk 0:02:51]}  Nc6 {[%clk 0:02:49]} 6. Bd3 {[%clk 0:02:51]}  Nge7 {[%clk 0:02:47]} 7. Ne2 {[%clk 0:02:49]}  O-O {[%clk 0:02:45]} 8. Qc2 {[%clk 0:02:44]}  f5 {[%clk 0:02:43]} 9. f3 {[%clk 0:02:40]}  fxe4 {[%clk 0:02:40]} 10. Bxe4 {[%clk 0:02:39]}  Bf5 {[%clk 0:02:40]} 11. Bd2 {[%clk 0:02:36]}  Bxe4 {[%clk 0:02:32]} 12. Qxe4 {[%clk 0:02:36]}  Qd7 {[%clk 0:02:30]} 13. O-O-O {[%clk 0:02:35]}  Qf5 {[%clk 0:02:30]} 14. Qxf5 {[%clk 0:02:31]}  Nxf5 {[%clk 0:02:26]} 15. f4 {[%clk 0:02:30]}  e4 {[%clk 0:02:25]} 16. g4 {[%clk 0:02:22]}  Nh4 {[%clk 0:02:21]} 17. Nd4 {[%clk 0:02:17]}  Rae8 {[%clk 0:01:59]} 18. Be1 {[%clk 0:01:56]}  Ng2 {[%clk 0:01:46]} 19. f5 {[%clk 0:01:50]}  Ne3 {[%clk 0:01:40]} 20. Ne6 {[%clk 0:01:35]}  Rxe6 {[%clk 0:01:34]} 21. fxe6 {[%clk 0:01:33]}  Nxd1 {[%clk 0:01:34]} 22. Kxd1 {[%clk 0:01:34]}  Re8 {[%clk 0:01:34]} 23. Rf1 {[%clk 0:01:28]}  Rxe6 {[%clk 0:01:29]} 24. Bh4 {[%clk 0:01:27]}  Ne5 {[%clk 0:01:27]} 25. c5 {[%clk 0:01:18]}  Nxg4 {[%clk 0:01:23]} 26. Ke2 {[%clk 0:01:13]}  d5 {[%clk 0:01:18]} 27. h3 {[%clk 0:01:12]}  Ne5 {[%clk 0:01:15]} 28. Rf5 {[%clk 0:01:11]}  g6 {[%clk 0:01:09]} 29. Rf4 {[%clk 0:01:08]}  Nd3 {[%clk 0:01:06]} 30. Rf1 {[%clk 0:01:05]}  Nxb2 {[%clk 0:01:02]} 31. Bg5 {[%clk 0:01:06]}  Nd3 {[%clk 0:00:56]} 32. Bh6 {[%clk 0:01:06]}  Re8 {[%clk 0:00:57]} 33. h4 {[%clk 0:01:01]}  Ne5 {[%clk 0:00:53]} 34. Rf4 {[%clk 0:00:51]}  Nf7 {[%clk 0:00:50]} 0-1


[Site "https://www.chess.com"]

[Event "Titled Tuesday Blitz August 15 Early 2023"]
[White "Shuvalova, Polina"]
[Black "Gatterer, Florian"]
[WhiteFideId "24171760"]
[BlackFideId "811688"]
[WhiteElo "2643"]
[BlackElo "2339"]
[Result "1-0"]
[Round "1"]
[TimeControl "180+1"]
[Date "2023.08.15"]
[WhiteClock "0:00:33"]
[BlackClock "0:00:21"]
[Board "132"]

1. f4 {[%clk 0:02:59]}  d5 {[%clk 0:02:59]} 2. g3 {[%clk 0:02:59]}  g6 {[%clk 0:02:58]} 3. Bg2 {[%clk 0:03:00]}  Bg7 {[%clk 0:02:59]} 4. Nf3 {[%clk 0:03:00]}  Nf6 {[%clk 0:02:58]} 5. O-O {[%clk 0:03:00]}  O-O {[%clk 0:02:57]} 6. d3 {[%clk 0:03:01]}  c5 {[%clk 0:02:57]} 7. Nbd2 {[%clk 0:03:01]}  d4 {[%clk 0:02:57]} 8. e4 {[%clk 0:02:57]}  dxe3 {[%clk 0:02:48]} 9. Nc4 {[%clk 0:02:57]}  Nd5 {[%clk 0:02:48]} 10. c3 {[%clk 0:02:51]}  Nc6 {[%clk 0:02:40]} 11. Nxe3 {[%clk 0:02:45]}  Nxe3 {[%clk 0:02:40]} 12. Bxe3 {[%clk 0:02:46]}  Bf5 {[%clk 0:02:40]} 13. Ne1 {[%clk 0:02:39]}  Qd6 {[%clk 0:02:30]} 14. Qb3 {[%clk 0:02:31]}  b6 {[%clk 0:02:24]} 15. Rd1 {[%clk 0:02:17]}  Be6 {[%clk 0:02:23]} 16. Qc2 {[%clk 0:02:14]}  Bd5 {[%clk 0:02:23]} 17. Nf3 {[%clk 0:02:12]}  e5 {[%clk 0:02:12]} 18. Rde1 {[%clk 0:01:51]}  Rad8 {[%clk 0:02:01]} 19. b3 {[%clk 0:01:32]}  Rfe8 {[%clk 0:01:57]} 20. Qf2 {[%clk 0:01:21]}  Qd7 {[%clk 0:01:43]} 21. c4 {[%clk 0:01:12]}  Bxf3 {[%clk 0:01:31]} 22. Qxf3 {[%clk 0:01:03]}  Nd4 {[%clk 0:01:27]} 23. Bxd4 {[%clk 0:00:52]}  Qxd4+ {[%clk 0:01:26]} 24. Kh1 {[%clk 0:00:52]}  Qxd3 {[%clk 0:01:08]} 25. Qxd3 {[%clk 0:00:49]}  Rxd3 {[%clk 0:01:07]} 26. Bd5 {[%clk 0:00:49]}  e4 {[%clk 0:00:53]} 27. f5 {[%clk 0:00:49]}  Bc3 {[%clk 0:00:37]} 28. fxg6 {[%clk 0:00:46]}  hxg6 {[%clk 0:00:36]} 29. Bxf7+ {[%clk 0:00:44]}  Kg7 {[%clk 0:00:33]} 30. Bxe8 {[%clk 0:00:44]}  Bxe1 {[%clk 0:00:33]} 31. Rxe1 {[%clk 0:00:45]}  e3 {[%clk 0:00:33]} 32. Re2 {[%clk 0:00:40]}  Kf6 {[%clk 0:00:27]} 33. Kg2 {[%clk 0:00:40]}  g5 {[%clk 0:00:24]} 34. Kf3 {[%clk 0:00:39]}  g4+ {[%clk 0:00:23]} 35. Kxg4 {[%clk 0:00:39]}  Ke5 {[%clk 0:00:22]} 36. Kf3 {[%clk 0:00:37]}  Kd4 {[%clk 0:00:22]} 37. Bg6 {[%clk 0:00:37]}  Rd2 {[%clk 0:00:22]} 38. Rxd2+ {[%clk 0:00:33]}  exd2 {[%clk 0:00:22]} 39. Ke2 {[%clk 0:00:33]}  Kc3 {[%clk 0:00:21]} 40. Kd1 {[%clk 0:00:33]} 1-0


[Site "https://www.chess.com"]

[Event "Titled Tuesday Blitz August 15 Early 2023"]
[White "Ziatdinov, Raset"]
[Black "Nefedov, Sergey"]
[WhiteFideId "2015323"]
[BlackFideId "24113417"]
[WhiteElo "2332"]
[BlackElo "2636"]
[Result "0-1"]
[Round "1"]
[TimeControl "180+1"]
[Date "2023.08.15"]
[WhiteClock "0:00:02"]
[BlackClock "0:01:39"]
[Board "135"]

1. e4 {[%clk 0:03:00]}  d5 {[%clk 0:02:58]} 2. exd5 {[%clk 0:03:00]}  Qxd5 {[%clk 0:02:57]} 3. Nc3 {[%clk 0:03:00]}  Qd8 {[%clk 0:02:52]} 4. d4 {[%clk 0:03:00]}  Nf6 {[%clk 0:02:53]} 5. Nf3 {[%clk 0:02:59]}  c6 {[%clk 0:02:52]} 6. Bc4 {[%clk 0:02:59]}  Bf5 {[%clk 0:02:53]} 7. O-O {[%clk 0:02:58]}  e6 {[%clk 0:02:53]} 8. Ne5 {[%clk 0:02:58]}  Nbd7 {[%clk 0:02:52]} 9. Bf4 {[%clk 0:02:52]}  Be7 {[%clk 0:02:45]} 10. Re1 {[%clk 0:02:36]}  O-O {[%clk 0:02:39]} 11. Qf3 {[%clk 0:02:25]}  Nd5 {[%clk 0:02:33]} 12. Nxd5 {[%clk 0:02:10]}  cxd5 {[%clk 0:02:32]} 13. Bd3 {[%clk 0:02:04]}  Nxe5 {[%clk 0:02:31]} 14. Bxe5 {[%clk 0:01:57]}  Bxd3 {[%clk 0:02:31]} 15. Qxd3 {[%clk 0:01:57]}  Bf6 {[%clk 0:02:31]} 16. c3 {[%clk 0:01:54]}  Bxe5 {[%clk 0:02:26]} 17. Rxe5 {[%clk 0:01:54]}  Qf6 {[%clk 0:02:25]} 18. Rae1 {[%clk 0:01:54]}  Rfc8 {[%clk 0:02:21]} 19. Qb5 {[%clk 0:01:49]}  Rab8 {[%clk 0:02:19]} 20. a4 {[%clk 0:01:32]}  Qd8 {[%clk 0:02:13]} 21. f4 {[%clk 0:01:30]}  g6 {[%clk 0:02:09]} 22. g3 {[%clk 0:01:10]}  a6 {[%clk 0:02:08]} 23. Qb3 {[%clk 0:01:05]}  b5 {[%clk 0:02:09]} 24. axb5 {[%clk 0:00:59]}  axb5 {[%clk 0:02:09]} 25. Ra1 {[%clk 0:00:56]}  b4 {[%clk 0:02:08]} 26. cxb4 {[%clk 0:00:51]}  Qb6 {[%clk 0:02:07]} 27. b5 {[%clk 0:00:36]}  Qxd4+ {[%clk 0:02:01]} 28. Kg2 {[%clk 0:00:36]}  Qc4 {[%clk 0:02:00]} 29. Qxc4 {[%clk 0:00:23]}  Rxc4 {[%clk 0:01:56]} 30. Ra7 {[%clk 0:00:15]}  Rxb5 {[%clk 0:01:55]} 31. Re2 {[%clk 0:00:15]}  Rcb4 {[%clk 0:01:54]} 32. Kh3 {[%clk 0:00:13]}  Rxb2 {[%clk 0:01:53]} 33. Re3 {[%clk 0:00:14]}  Rb7 {[%clk 0:01:51]} 34. Ra8+ {[%clk 0:00:14]}  Kg7 {[%clk 0:01:51]} 35. Rea3 {[%clk 0:00:13]}  Re2 {[%clk 0:01:42]} 36. Rd8 {[%clk 0:00:12]}  h5 {[%clk 0:01:42]} 37. Raa8 {[%clk 0:00:12]}  Rbb2 {[%clk 0:01:41]} 38. g4 {[%clk 0:00:02]}  Re3+ {[%clk 0:01:38]} 39. Kh4 {[%clk 0:00:01]}  Rxh2+ {[%clk 0:01:39]} 40. Kg5 {[%clk 0:00:02]}  f6# {[%clk 0:01:39]} 0-1


[Site "https://www.chess.com"]

[Event "Titled Tuesday Blitz August 15 Early 2023"]
[White "Rian, Kapriaga"]
[Black "Ovchinnikov, Vsevolod"]
[WhiteFideId "7103263"]
[BlackFideId "24176842"]
[WhiteElo "2329"]
[BlackElo "2635"]
[Result "1-0"]
[Round "1"]
[TimeControl "180+1"]
[Date "2023.08.15"]
[WhiteClock "0:00:08"]
[BlackClock "0:00:00"]
[Board "137"]

1. d4 {[%clk 0:02:57]}  Nf6 {[%clk 0:03:00]} 2. Nf3 {[%clk 0:02:55]}  g6 {[%clk 0:03:00]} 3. Bg5 {[%clk 0:02:45]}  Bg7 {[%clk 0:03:00]} 4. Nbd2 {[%clk 0:02:45]}  d5 {[%clk 0:03:00]} 5. e3 {[%clk 0:02:44]}  O-O {[%clk 0:03:00]} 6. Be2 {[%clk 0:02:38]}  c5 {[%clk 0:02:59]} 7. c3 {[%clk 0:02:34]}  b6 {[%clk 0:02:59]} 8. O-O {[%clk 0:02:28]}  Bb7 {[%clk 0:02:56]} 9. Ne5 {[%clk 0:02:26]}  Nbd7 {[%clk 0:02:54]} 10. f4 {[%clk 0:02:21]}  Ne8 {[%clk 0:02:50]} 11. Nxd7 {[%clk 0:02:11]}  Qxd7 {[%clk 0:02:50]} 12. b4 {[%clk 0:02:10]}  cxb4 {[%clk 0:02:46]} 13. cxb4 {[%clk 0:02:09]}  Nd6 {[%clk 0:02:46]} 14. a4 {[%clk 0:01:58]}  Rfc8 {[%clk 0:02:42]} 15. Qb3 {[%clk 0:01:56]}  Rc7 {[%clk 0:02:35]} 16. Rfc1 {[%clk 0:01:54]}  Rac8 {[%clk 0:02:35]} 17. Qb2 {[%clk 0:01:50]}  e6 {[%clk 0:02:11]} 18. b5 {[%clk 0:01:42]}  Nf5 {[%clk 0:02:03]} 19. Nf1 {[%clk 0:01:17]}  h6 {[%clk 0:02:03]} 20. g4 {[%clk 0:01:15]}  hxg5 {[%clk 0:02:03]} 21. gxf5 {[%clk 0:01:14]}  exf5 {[%clk 0:01:46]} 22. fxg5 {[%clk 0:01:09]}  Qe7 {[%clk 0:01:35]} 23. h4 {[%clk 0:01:07]}  Rxc1 {[%clk 0:01:01]} 24. Rxc1 {[%clk 0:01:06]}  Rxc1 {[%clk 0:01:02]} 25. Qxc1 {[%clk 0:01:05]}  f4 {[%clk 0:01:02]} 26. Kf2 {[%clk 0:00:53]}  fxe3+ {[%clk 0:00:50]} 27. Qxe3 {[%clk 0:00:52]}  Qb4 {[%clk 0:00:29]} 28. Qe8+ {[%clk 0:00:40]}  Bf8 {[%clk 0:00:29]} 29. Qe3 {[%clk 0:00:34]}  Qxa4 {[%clk 0:00:29]} 30. h5 {[%clk 0:00:33]}  gxh5 {[%clk 0:00:21]} 31. Bxh5 {[%clk 0:00:16]}  Qxb5 {[%clk 0:00:11]} 32. Qf4 {[%clk 0:00:13]}  Qd7 {[%clk 0:00:09]} 33. Ne3 {[%clk 0:00:13]}  Bd6 {[%clk 0:00:04]} 34. Qf6 {[%clk 0:00:11]}  Qe7 {[%clk 0:00:04]} 35. Qf5 {[%clk 0:00:08]}  Bc6 {[%clk 0:00:00]} 36. Ng4 {[%clk 0:00:08]} 1-0


[Site "https://www.chess.com"]

[Event "Titled Tuesday Blitz August 15 Early 2023"]
[White "Martin, Lewis"]
[Black "Eynullayev, Atilla"]
[WhiteFideId "410551"]
[BlackFideId "13413570"]
[WhiteElo "2327"]
[BlackElo "2632"]
[Result "0-1"]
[Round "1"]
[TimeControl "180+1"]
[Date "2023.08.15"]
[WhiteClock "0:00:20"]
[BlackClock "0:00:42"]
[Board "139"]

1. e4 {[%clk 0:03:00]}  c5 {[%clk 0:02:57]} 2. Nf3 {[%clk 0:03:00]}  e6 {[%clk 0:02:57]} 3. d4 {[%clk 0:03:00]}  cxd4 {[%clk 0:02:57]} 4. Nxd4 {[%clk 0:03:00]}  a6 {[%clk 0:02:58]} 5. Nc3 {[%clk 0:03:00]}  b5 {[%clk 0:02:58]} 6. a3 {[%clk 0:02:59]}  Bb7 {[%clk 0:02:58]} 7. g3 {[%clk 0:02:58]}  Nc6 {[%clk 0:02:58]} 8. Nde2 {[%clk 0:02:56]}  Bc5 {[%clk 0:02:53]} 9. Bg2 {[%clk 0:02:56]}  Nge7 {[%clk 0:02:54]} 10. O-O {[%clk 0:02:55]}  O-O {[%clk 0:02:54]} 11. b4 {[%clk 0:02:48]}  Bb6 {[%clk 0:02:52]} 12. Bb2 {[%clk 0:02:48]}  Ne5 {[%clk 0:02:27]} 13. Kh1 {[%clk 0:02:21]}  Nc4 {[%clk 0:02:27]} 14. Bc1 {[%clk 0:02:20]}  f5 {[%clk 0:02:14]} 15. a4 {[%clk 0:01:56]}  fxe4 {[%clk 0:01:54]} 16. axb5 {[%clk 0:01:55]}  axb5 {[%clk 0:01:54]} 17. Rxa8 {[%clk 0:01:54]}  Qxa8 {[%clk 0:01:55]} 18. Nxb5 {[%clk 0:01:53]}  e3 {[%clk 0:01:47]} 19. f3 {[%clk 0:01:23]}  d5 {[%clk 0:01:13]} 20. Nbd4 {[%clk 0:01:16]}  e5 {[%clk 0:01:08]} 21. Nb3 {[%clk 0:01:03]}  d4 {[%clk 0:01:08]} 22. Ng1 {[%clk 0:00:57]}  Nd5 {[%clk 0:00:58]} 23. Qd3 {[%clk 0:00:55]}  Nd6 {[%clk 0:00:51]} 24. Nc5 {[%clk 0:00:49]}  Bc6 {[%clk 0:00:43]} 25. c4 {[%clk 0:00:20]}  Nxb4 {[%clk 0:00:42]} 0-1


[Site "https://www.chess.com"]

[Event "Titled Tuesday Blitz August 15 Early 2023"]
[White "Gamayev, Oleg"]
[Black "Osinovsky, Stepan"]
[WhiteFideId "2802813"]
[BlackFideId "4157354"]
[WhiteElo "2631"]
[BlackElo "2323"]
[Result "0-1"]
[Round "1"]
[TimeControl "180+1"]
[Date "2023.08.15"]
[WhiteClock "0:02:35"]
[BlackClock "0:00:12"]
[Board "140"]

1. d3 {[%clk 0:02:57]}  Nf6 {[%clk 0:02:59]} 2. e4 {[%clk 0:02:58]}  g6 {[%clk 0:02:57]} 3. Nf3 {[%clk 0:02:58]}  Bg7 {[%clk 0:02:57]} 4. Be2 {[%clk 0:02:58]}  O-O {[%clk 0:02:55]} 5. O-O {[%clk 0:02:58]}  d5 {[%clk 0:02:54]} 6. exd5 {[%clk 0:02:58]}  Nxd5 {[%clk 0:02:53]} 7. c3 {[%clk 0:02:59]}  b6 {[%clk 0:02:52]} 8. Re1 {[%clk 0:02:59]}  Bb7 {[%clk 0:02:52]} 9. Bf1 {[%clk 0:03:00]}  c5 {[%clk 0:02:51]} 10. Nbd2 {[%clk 0:03:01]}  Nc6 {[%clk 0:02:47]} 11. Nb3 {[%clk 0:03:01]}  Qd7 {[%clk 0:02:43]} 12. a4 {[%clk 0:03:01]}  a5 {[%clk 0:02:37]} 13. Nbd2 {[%clk 0:03:00]}  Rad8 {[%clk 0:02:27]} 14. Nc4 {[%clk 0:03:00]}  Qc7 {[%clk 0:02:27]} 15. Qb3 {[%clk 0:02:59]}  Ba8 {[%clk 0:02:09]} 16. Bg5 {[%clk 0:02:58]}  Rb8 {[%clk 0:02:04]} 17. Na3 {[%clk 0:02:56]}  Qd7 {[%clk 0:01:56]} 18. Nb5 {[%clk 0:02:54]}  h6 {[%clk 0:01:48]} 19. Bc1 {[%clk 0:02:54]}  Kh7 {[%clk 0:01:45]} 20. Nd2 {[%clk 0:02:55]}  Nf4 {[%clk 0:01:12]} 21. Qc4 {[%clk 0:02:52]}  Qg4 {[%clk 0:01:03]} 22. Re3 {[%clk 0:02:38]}  Ne5 {[%clk 0:00:59]} 23. Qb3 {[%clk 0:02:36]}  Bxg2 {[%clk 0:00:13]} 24. Bxg2 {[%clk 0:02:35]}  Qxg2# {[%clk 0:00:12]} 0-1


[Site "https://www.chess.com"]

[Event "Titled Tuesday Blitz August 15 Early 2023"]
[White "Iunusovnuriddin"]
[Black "Kuzhilniy, Oleksandr"]
[BlackFideId "34110500"]
[WhiteElo "2322"]
[BlackElo "2628"]
[Result "0-1"]
[Round "1"]
[TimeControl "180+1"]
[Date "2023.08.15"]
[WhiteClock "0:00:11"]
[BlackClock "0:00:13"]
[Board "141"]

1. e4 {[%clk 0:02:58]}  e6 {[%clk 0:02:57]} 2. d4 {[%clk 0:02:51]}  b6 {[%clk 0:02:57]} 3. Nc3 {[%clk 0:02:51]}  Bb7 {[%clk 0:02:56]} 4. f4 {[%clk 0:02:52]}  Bb4 {[%clk 0:02:55]} 5. Bd3 {[%clk 0:02:47]}  Nf6 {[%clk 0:02:54]} 6. Qe2 {[%clk 0:02:46]}  d5 {[%clk 0:02:53]} 7. e5 {[%clk 0:02:02]}  Ne4 {[%clk 0:02:52]} 8. Bxe4 {[%clk 0:02:02]}  dxe4 {[%clk 0:02:53]} 9. Be3 {[%clk 0:02:02]}  Nc6 {[%clk 0:02:47]} 10. Rd1 {[%clk 0:02:01]}  Ne7 {[%clk 0:02:46]} 11. a3 {[%clk 0:01:54]}  Bxc3+ {[%clk 0:02:44]} 12. bxc3 {[%clk 0:01:55]}  Nf5 {[%clk 0:02:43]} 13. Nh3 {[%clk 0:01:51]}  Qe7 {[%clk 0:02:33]} 14. Ra1 {[%clk 0:01:46]}  Qh4+ {[%clk 0:02:17]} 15. Nf2 {[%clk 0:01:44]}  O-O {[%clk 0:02:07]} 16. g4 {[%clk 0:01:31]}  Ne7 {[%clk 0:01:57]} 17. O-O {[%clk 0:01:23]}  Nd5 {[%clk 0:01:47]} 18. Nxe4 {[%clk 0:01:12]}  Nxe3 {[%clk 0:01:46]} 19. Qxe3 {[%clk 0:01:13]}  Qxg4+ {[%clk 0:01:46]} 20. Qg3 {[%clk 0:01:03]}  Qf5 {[%clk 0:01:39]} 21. Nf2 {[%clk 0:00:26]}  Qxc2 {[%clk 0:01:39]} 22. Rac1 {[%clk 0:00:17]}  Qg6 {[%clk 0:01:39]} 23. c4 {[%clk 0:00:16]}  Rfd8 {[%clk 0:01:37]} 24. Rfd1 {[%clk 0:00:16]}  c5 {[%clk 0:01:32]} 25. dxc5 {[%clk 0:00:12]}  bxc5 {[%clk 0:01:33]} 26. Qxg6 {[%clk 0:00:13]}  hxg6 {[%clk 0:01:33]} 27. Nd3 {[%clk 0:00:13]}  Bf3 {[%clk 0:01:25]} 28. Rd2 {[%clk 0:00:12]}  Rd4 {[%clk 0:01:24]} 29. Kf2 {[%clk 0:00:12]}  Rad8 {[%clk 0:01:12]} 30. Ke3 {[%clk 0:00:12]}  Be4 {[%clk 0:01:04]} 31. Rcd1 {[%clk 0:00:12]}  Bxd3 {[%clk 0:00:33]} 32. Rxd3 {[%clk 0:00:13]}  Rxd3+ {[%clk 0:00:34]} 33. Rxd3 {[%clk 0:00:14]}  Rxd3+ {[%clk 0:00:34]} 34. Kxd3 {[%clk 0:00:15]}  Kh7 {[%clk 0:00:21]} 35. Kc3 {[%clk 0:00:12]}  Kh6 {[%clk 0:00:20]} 36. Kb3 {[%clk 0:00:13]}  g5 {[%clk 0:00:17]} 37. fxg5+ {[%clk 0:00:11]}  Kxg5 {[%clk 0:00:18]} 38. Ka4 {[%clk 0:00:12]}  f5 {[%clk 0:00:18]} 39. Kb5 {[%clk 0:00:13]}  f4 {[%clk 0:00:18]} 40. Kxc5 {[%clk 0:00:13]}  f3 {[%clk 0:00:19]} 41. Kd6 {[%clk 0:00:14]}  f2 {[%clk 0:00:15]} 42. c5 {[%clk 0:00:13]}  f1=Q {[%clk 0:00:15]} 43. c6 {[%clk 0:00:14]}  Qa6 {[%clk 0:00:12]} 44. Kd7 {[%clk 0:00:14]}  Qb5 {[%clk 0:00:12]} 45. Kd6 {[%clk 0:00:14]}  Qd5+ {[%clk 0:00:13]} 46. Kc7 {[%clk 0:00:11]}  Qxe5+ {[%clk 0:00:13]} 0-1


[Site "https://www.chess.com"]